bitfinex/quotes_SOLUSD_20240808
["timestamp","ask_amount","ask_price","bid_price","bid_amount"]
[1723122164635,164.39623505,155.45,155.44,200.89373924]
[1723122164836,164.39623505,155.45,155.3,45.0688]
[1723122164837,38.54,155.41,155.3,45.0688]
[1723122165017,113.54,155.4,155.3,45.0688]
[1723122165215,75.0,155.4,155.31,1.28699582]
[1723122165719,75.0,155.4,155.3,45.0688]
[1723122165920,113.54,155.4,155.3,45.0688]
[1723122166228,113.54,155.4,155.31,20.0]
[1723122166840,0.34,155.39,155.31,20.0]
[1723122167217,0.34,155.39,155.32,1.28746798]
[1723122167413,0.34,155.39,155.31,20.0]
[1723122167414,0.34,155.39,155.31,21.28733618]
[1723122167754,0.34,155.39,155.31,20.0]
[1723122168318,0.17,155.39,155.32,1.28732907]
[1723122168518,0.64333505,155.45,155.32,1.28732907]
[1723122168736,38.88,155.44,155.32,1.28732907]
[1723122168942,38.88,155.44,155.31,20.0]
[1723122168943,38.54,155.44,155.31,20.0]
[1723122169829,0.64333505,155.45,155.32,1.45723356]
[1723122170049,0.64333505,155.45,155.33,0.17]
[1723122170215,0.64333505,155.45,155.33,20.17]
[1723122170414,0.64333505,155.45,155.34,45.0]
[1723122170637,0.64333505,155.45,155.35,20.0]
[1723122171131,0.64333505,155.45,155.33,1.28696136]
[1723122171443,0.64333505,155.45,155.36,50.2755]
[1723122171629,0.64333505,155.45,155.37,65.34]
[1723122172020,0.64333505,155.45,155.38,1.28643638]
[1723122172228,0.64333505,155.45,155.37,65.34]
[1723122176053,0.64333505,155.45,155.37,21.28654782]
[1723122176349,0.64333505,155.45,155.37,20.0]
[1723122177257,0.64333505,155.45,155.38,45.0]
[1723122177426,0.64333505,155.45,155.39,20.0]
[1723122177632,0.64333505,155.45,155.4,45.0]
[1723122177921,0.64333505,155.45,155.41,20.0]
[1723122178154,0.64333505,155.45,155.39,20.0]
[1723122178324,0.64333505,155.45,155.4,46.28640254]
[1723122178527,0.64333505,155.45,155.41,20.0]
[1723122178845,0.64333505,155.45,155.42,45.0]
[1723122179021,0.64333505,155.45,155.41,20.0]
[1723122179022,0.64333505,155.45,155.43,20.0]
[1723122179232,0.64333505,155.45,155.41,20.0]
[1723122179631,0.64333505,155.45,155.42,45.0]
[1723122179839,6.68227392,155.58,155.45,24.4917]
[1723122180041,38.54,155.61,155.46,66.62578044]
[1723122180227,38.54,155.64,155.46,66.62578044]
[1723122180428,38.54,155.62,155.46,20.0]
[1723122180743,38.54,155.59,155.46,20.0]
[1723122181549,38.54,155.63,155.46,20.0]
[1723122181728,66.18541245,155.64,155.46,20.0]
[1723122181729,44.9675,155.58,155.46,20.0]
[1723122181927,45.34,155.62,155.46,20.0]
[1723122181928,38.54,155.56,155.46,20.0]
[1723122182145,0.17,155.55,155.45,24.4917]
[1723122182344,38.54,155.54,155.44,10.5165]
[1723122182545,83.88,155.53,155.44,10.5165]
[1723122182847,83.71,155.52,155.39,34.8693]
[1723122183030,0.17,155.51,155.39,34.8693]
[1723122183234,0.17,155.51,155.4,1.2864204]
[1723122183756,0.17,155.51,155.39,34.8693]
[1723122184258,0.17,155.51,155.4,41.28641667]
[1723122185055,0.17,155.51,155.4,21.28641667]
[1723122185358,0.17,155.51,155.41,45.0]
[1723122185531,0.17,155.51,155.42,20.0]
[1723122185852,38.71,155.51,155.39,34.8693]
[1723122186150,83.71,155.5,155.39,34.8693]
[1723122186357,83.88,155.49,155.39,34.8693]
[1723122186655,38.54,155.49,155.39,34.8693]
[1723122186854,83.88,155.48,155.39,34.8693]
[1723122187025,0.17,155.48,155.39,34.8693]
[1723122187226,0.17,155.48,155.4,20.0]
[1723122187741,38.71,155.51,155.4,20.0]
[1723122187934,45.0,155.5,155.4,20.0]
[1723122188152,0.17,155.49,155.4,20.0]
[1723122188352,38.54,155.54,155.4,64.72646067]
[1723122188648,24.4928,155.57,155.41,45.34]
[1723122188831,24.4928,155.57,155.42,20.0]
[1723122189439,24.4928,155.57,155.4,21.28642646]
[1723122189440,38.54,155.56,155.4,21.28642646]
[1723122189760,38.54,155.56,155.41,46.28631522]
[1723122189961,38.54,155.56,155.42,20.0]
[1723122190257,24.4928,155.57,155.39,34.8693]
[1723122190258,38.54,155.52,155.39,34.8693]
[1723122191058,0.17,155.51,155.39,34.8693]
[1723122191383,83.88,155.51,155.39,34.8693]
[1723122191533,83.88,155.51,155.4,20.0]
[1723122192229,38.54,155.49,155.35,6.67961352]
[1723122192435,62.9998,155.47,155.33,25.3381]
[1723122192659,0.34,155.46,155.29,10.514206]
[1723122192954,38.54,155.45,155.29,10.514206]
[1723122193141,83.88,155.44,155.29,10.514206]
[1723122193338,45.17,155.43,155.29,10.514206]
[1723122193541,0.17,155.42,155.29,10.514206]
[1723122193850,0.17,155.42,155.29,11.80144811]
[1723122194154,0.17,155.42,155.29,10.514206]
[1723122194949,0.17,155.42,155.3,1.28734217]
[1723122195143,0.17,155.43,155.3,1.28734217]
[1723122195345,24.4598,155.47,155.3,21.28734217]
[1723122195549,24.4598,155.47,155.31,45.0]
[1723122195747,24.4598,155.47,155.32,1.28693959]
[1723122196065,24.4598,155.47,155.33,0.17]
[1723122196231,10.3648,155.5,155.34,20.0]
[1723122196427,20.0,155.66,155.31,65.0]
[1723122196428,9.6111,155.56,155.39,36.3797]
[1723122196732,6.4266,155.61,155.39,36.3797]
[1723122196733,26.142,155.59,155.42,20.0]
[1723122196928,26.142,155.59,155.44,20.0]
[1723122197132,38.54,155.6,155.45,66.45586417]
[1723122197447,26.142,155.64,155.46,21.45586451]
[1723122197634,26.142,155.64,155.47,65.0]
[1723122197950,6.4259,155.62,155.47,20.0]
[1723122198155,38.54,155.56,155.47,20.0]
[1723122198343,38.54,155.56,155.43,20.0]
[1723122198536,38.54,155.56,155.39,36.3797]
[1723122198537,38.54,155.56,155.4,20.0]
[1723122199359,44.9695,155.54,155.39,36.3797]
[1723122199559,45.34,155.53,155.39,37.66630399]
[1723122199762,45.0,155.52,155.4,46.28641715]
[1723122199952,0.17,155.51,155.4,45.0]
[1723122200153,0.17,155.51,155.4,46.28649426]
[1723122200551,83.71,155.55,155.4,46.28649426]
[1723122201140,45.17,155.55,155.42,20.0]
[1723122201443,83.71,155.55,155.43,20.0]
[1723122201661,90.1391,155.55,155.41,20.0]
[1723122201848,38.54,155.51,155.39,36.3797]
[1723122202040,38.54,155.49,155.39,36.3797]
[1723122202241,38.54,155.52,155.39,36.3797]
[1723122202465,45.0,155.55,155.4,1.28104584]
[1723122202648,23.9716,155.59,155.4,1.28104584]
[1723122203064,6.4293,155.54,155.39,36.3797]
[1723122203269,38.54,155.54,155.4,20.0]
[1723122203444,38.54,155.52,155.39,36.3797]
[1723122204063,38.54,155.5,155.39,36.3797]
[1723122204238,83.88,155.49,155.39,36.3797]
[1723122204444,0.17,155.48,155.39,36.3797]
[1723122205374,0.17,155.49,155.39,36.3797]
[1723122205375,38.54,155.55,155.4,1.2862191]
[1723122205866,38.54,155.58,155.4,64.7262191]
[1723122206386,54.608,155.59,155.39,56.3797]
[1723122206668,54.608,155.59,155.4,65.0]
[1723122206669,38.54,155.54,155.4,65.0]
[1723122207465,38.71,155.53,155.39,36.3797]
[1723122207650,45.17,155.52,155.39,36.3797]
[1723122207860,0.17,155.51,155.39,36.3797]
[1723122208168,0.17,155.51,155.4,1.28636555]
[1723122208354,10.4284,155.6,155.4,21.28636555]
[1723122208538,30.3651,155.64,155.43,20.0]
[1723122208738,30.3651,155.64,155.45,20.0]
[1723122208986,9.1472,155.67,155.46,69.11880817]
[1723122209155,38.54,155.66,155.47,20.0]
[1723122209349,9.1472,155.67,155.48,45.0]
[1723122209350,44.9654,155.64,155.48,45.0]
[1723122209671,38.54,155.64,155.48,45.0]
[1723122209857,38.54,155.64,155.49,20.0]
[1723122210162,38.54,155.64,155.5,45.0]
[1723122210367,6.4251,155.64,155.51,20.0]
[1723122210555,38.54,155.63,155.49,21.28571191]
[1723122210749,38.54,155.66,155.5,9.1164]
[1723122210963,38.54,155.66,155.51,21.28546331]
[1723122211565,38.54,155.65,155.51,20.0]
[1723122212149,55.28209295,155.68,155.52,1.2856959]
[1723122212447,38.54,155.69,155.52,1.2856959]
[1723122212778,38.54,155.69,155.52,46.2856959]
[1723122212970,38.54,155.69,155.53,20.34]
[1723122213263,38.54,155.69,155.54,46.28520866]
[1723122213459,38.54,155.69,155.55,20.0]
[1723122213664,38.54,155.7,155.56,1.28516095]
[1723122213964,38.54,155.72,155.58,9.5865]
[1723122214162,8.7835,155.77,155.59,21.62471336]
[1723122214163,18.84620415,155.77,155.59,21.62471336]
[1723122214370,6.4206,155.75,155.59,20.0]
[1723122214569,6.4209,155.74,155.59,20.0]
[1723122214759,38.54,155.72,155.59,20.0]
[1723122214950,38.54,155.71,155.59,20.0]
[1723122215144,38.54,155.69,155.59,20.0]
[1723122215550,45.17,155.68,155.59,20.0]
[1723122215966,0.17,155.68,155.59,20.0]
[1723122216263,50.11428132,155.76,155.59,20.0]
[1723122216264,56.53438132,155.76,155.6,45.0]
[1723122216471,6.4206,155.75,155.61,20.0]
[1723122216769,50.11428132,155.76,155.59,20.0]
[1723122216960,38.54,155.7,155.59,20.0]
[1723122217165,38.54,155.67,155.58,9.5865]
[1723122217668,43.44,155.72,155.58,9.5865]
[1723122217868,38.54,155.7,155.58,9.5865]
[1723122218051,0.17,155.69,155.58,9.5865]
[1723122218648,38.54,155.66,155.59,20.0]
[1723122218864,0.17,155.65,155.53,8.9087]
[1723122219174,38.54,155.63,155.53,8.9087]
[1723122219475,45.34,155.62,155.53,8.9087]
[1723122221150,45.34,155.62,155.54,20.0]
[1723122221881,38.54,155.61,155.54,20.0]
[1723122222167,45.34,155.6,155.53,8.9087]
[1723122223875,83.88,155.6,155.48,32.7467]
[1723122224372,45.17,155.6,155.49,0.36595621]
[1723122224570,45.0,155.6,155.49,1.28559453]
[1723122224896,45.0,155.6,155.48,32.7467]
[1723122225184,45.0,155.6,155.49,21.28542941]
[1723122225399,35.73,155.66,155.49,66.28542941]
[1723122225400,38.54,155.65,155.49,66.28542941]
[1723122225691,59.5292,155.69,155.5,20.0]
[1723122225874,260.7,155.72,155.55,35.73]
[1723122226054,260.7,155.72,155.56,21.28474014]
[1723122226254,45.2046,155.76,155.56,21.28474014]
[1723122226255,38.54,155.74,155.59,8.7642]
[1723122226462,38.54,155.74,155.6,65.0]
[1723122226682,38.54,155.75,155.6,65.97581122]
[1723122227195,38.54,155.75,155.61,1.28467325]
[1723122227478,38.54,155.77,155.61,80.55737325]
[1723122227682,38.54,155.77,155.62,65.0]
[1723122227902,6.4177,155.82,155.64,55.73]
[1723122228072,0.8574284,155.84,155.68,33.4119]
[1723122228389,0.8574284,155.84,155.7,35.73]
[1723122228550,0.8574284,155.84,155.73,35.73]
[1723122228756,0.8574284,155.84,155.74,21.28358486]
[1723122229106,0.8574284,155.84,155.76,35.73]
[1723122229399,0.8574284,155.84,155.77,29.0573]
[1723122229571,0.8574284,155.84,155.74,20.0]
[1723122229757,38.54,155.8,155.71,9.0573]
[1723122229955,0.8574284,155.84,155.71,9.0573]
[1723122229956,38.54,155.79,155.71,9.0573]
[1723122230157,38.54,155.73,155.64,9.0573]
[1723122230481,0.17,155.72,155.64,9.0573]
[1723122230661,0.34,155.72,155.64,9.0573]
[1723122231182,44.9626,155.7,155.61,22.6653]
[1723122231394,45.34,155.69,155.61,22.6653]
[1723122231588,45.34,155.69,155.58,9.2283]
[1723122231589,38.54,155.68,155.58,9.2283]
[1723122231796,6.425,155.65,155.53,333.946852]
[1723122232110,38.88,155.64,155.53,333.946852]
[1723122232283,45.0,155.63,155.53,333.946852]
[1723122232455,0.34,155.62,155.53,333.946852]
[1723122233064,43.57,155.75,155.53,333.946852]
[1723122233263,45.34,155.74,155.53,333.946852]
[1723122233593,6.4226,155.7,155.53,333.946852]
[1723122233774,38.54,155.68,155.54,20.0]
[1723122233967,83.71,155.67,155.54,20.0]
[1723122234172,38.71,155.67,155.54,20.0]
[1723122234478,46.50715047,155.75,155.54,20.0]
[1723122234479,6.4206,155.75,155.54,20.0]
[1723122234668,44.961,155.74,155.55,0.17]
[1723122234985,46.49561135,155.79,155.55,0.17]
[1723122234986,38.54,155.72,155.55,1.45359398]
[1723122235663,38.54,155.67,155.54,20.0]
[1723122235884,38.54,155.66,155.53,333.946852]
[1723122236062,0.17,155.65,155.53,333.946852]
[1723122236386,0.17,155.65,155.54,0.73776308]
[1723122236594,0.17,155.65,155.54,0.73791438]
[1723122237093,6.4194,155.78,155.56,43.57]
[1723122237313,38.54,155.8,155.6,43.57]
[1723122237471,38.54,155.8,155.61,66.20663669]
[1723122237671,44.9586,155.8,155.61,66.20663669]
[1723122237896,38.54,155.78,155.61,66.20663669]
[1723122238096,38.54,155.78,155.61,65.34]
[1723122238281,38.54,155.76,155.61,65.17]
[1723122238485,38.54,155.76,155.61,65.0]
[1723122238685,38.54,155.76,155.61,66.2845994]
[1723122239497,38.54,155.77,155.61,66.2845994]
[1723122240113,38.54,155.79,155.62,0.34]
[1723122240310,0.17,155.78,155.62,1.62438876]
[1723122240487,38.54,155.77,155.62,1.62438876]
[1723122240686,0.17,155.76,155.63,23.9998]
[1723122240888,0.8574284,155.84,155.65,8.929]
[1723122241099,0.8574284,155.84,155.66,41.6238963]
[1723122241284,0.8574284,155.84,155.67,45.0]
[1723122241479,0.8574284,155.84,155.68,20.0]
[1723122241701,38.54,155.82,155.68,20.0]
[1723122242405,0.8574284,155.84,155.69,45.0]
[1723122242406,45.17,155.81,155.69,45.0]
[1723122242610,45.0,155.81,155.68,20.75990601]
[1723122242777,45.0,155.81,155.68,20.0]
[1723122242974,45.0,155.81,155.68,21.28401579]
[1723122243177,0.8574284,155.84,155.69,45.0]
[1723122243390,0.8574284,155.84,155.7,1.28396525]
[1723122243605,0.8574284,155.84,155.7,21.28396525]
[1723122243783,0.8574284,155.84,155.72,32.0984]
[1723122243989,0.8574284,155.84,155.73,1.45345744]
[1723122244210,0.8574284,155.84,155.74,1.45337502]
[1723122244378,0.8574284,155.84,155.74,1.28337502]
[1723122244580,0.8574284,155.84,155.73,20.0]
[1723122244981,0.8574284,155.84,155.74,0.17]
[1723122245182,0.8574284,155.84,155.74,46.62357537]
[1723122245376,16.028,155.98,155.74,46.62357537]
[1723122245377,6.4122,155.96,155.75,20.0]
[1723122245582,261.5497672,155.99,155.76,46.45319465]
[1723122245583,6.4123,155.95,155.76,46.45319465]
[1723122245875,6.4133,155.93,155.77,20.0]
[1723122246083,38.54,155.91,155.72,32.0984]
[1723122246306,38.54,155.89,155.72,32.0984]
[1723122246813,0.34,155.88,155.73,1.28365111]
[1723122246982,0.34,155.88,155.72,33.38201738]
[1723122247303,38.54,155.85,155.72,32.0984]
[1723122247508,38.54,155.83,155.72,32.0984]
[1723122247713,0.34,155.82,155.72,32.0984]
[1723122247889,83.88,155.82,155.72,32.0984]
[1723122248210,0.34,155.82,155.72,32.0984]
[1723122248381,38.54,155.86,155.73,1.28325754]
[1723122248781,45.0,155.85,155.73,21.28325754]
[1723122248998,6.4132,155.93,155.74,45.17]
[1723122249212,38.54,155.92,155.75,20.0]
[1723122250005,38.54,155.92,155.76,45.0]
[1723122250215,38.54,155.92,155.77,20.0]
[1723122250383,38.54,155.91,155.77,20.0]
[1723122251011,38.54,155.91,155.78,45.0]
[1723122251202,38.54,155.91,155.79,20.0]
[1723122251400,38.54,155.95,155.79,21.2831597]
[1723122251593,38.54,155.95,155.8,45.0]
[1723122251791,38.54,155.95,155.82,8.8978]
[1723122251989,38.54,155.95,155.83,20.0]
[1723122252511,38.54,155.93,155.83,20.0]
[1723122253083,45.23423407,155.96,155.83,20.0]
[1723122253289,6.4111,155.98,155.83,20.0]
[1723122253290,38.54,155.98,155.83,20.0]
[1723122253709,38.54,155.95,155.84,23.3497]
[1723122253915,38.54,155.95,155.85,20.0]
[1723122254814,38.54,155.98,155.85,20.0]
[1723122255334,38.54,155.96,155.85,20.0]
[1723122255889,83.71,155.95,155.85,20.0]
[1723122256298,0.17,155.94,155.85,20.0]
[1723122256731,38.54,155.93,155.84,23.3497]
[1723122257020,90.2935,155.92,155.84,23.3497]
[1723122257324,0.17,155.91,155.84,23.3497]
[1723122257684,6.5839,155.91,155.84,23.3497]
[1723122257888,6.5839,155.91,155.78,23.0675]
[1723122257889,38.54,155.86,155.78,23.0675]
[1723122258114,38.71,155.85,155.78,23.0675]
[1723122258322,0.17,155.84,155.78,23.0675]
[1723122258698,6.4132,155.93,155.78,23.0675]
[1723122258909,51.7539,155.92,155.78,23.0675]
[1723122259128,45.34,155.92,155.78,23.0675]
[1723122259320,38.54,155.87,155.78,23.0675]
[1723122259505,0.34,155.86,155.78,23.0675]
[1723122259705,45.34,155.86,155.78,23.0675]
[1723122259901,83.88,155.86,155.78,23.0675]
[1723122260231,45.34,155.86,155.78,23.0675]
[1723122260412,38.54,155.9,155.78,23.0675]
[1723122260925,6.4144,155.9,155.78,23.0675]
[1723122261116,38.54,155.89,155.78,23.0675]
[1723122261300,38.54,155.86,155.78,23.0675]
[1723122261505,38.54,155.84,155.75,9.3396]
[1723122261697,83.54,155.83,155.75,9.3396]
[1723122261896,45.0,155.83,155.75,9.3396]
[1723122262121,0.34,155.82,155.75,9.3396]
[1723122262326,0.34,155.83,155.75,9.3396]
[1723122262528,30.0,155.82,155.75,9.3396]
[1723122262727,45.34,155.81,155.75,9.3396]
[1723122263040,38.54,155.8,155.73,300.0]
[1723122263211,38.54,155.78,155.73,300.0]
[1723122263407,83.88,155.77,155.73,300.0]
[1723122263722,38.88,155.77,155.73,300.0]
[1723122263920,45.0,155.76,155.73,300.0]
[1723122264238,0.34,155.77,155.73,300.0]
[1723122264909,38.54,155.74,155.73,300.0]
[1723122265235,83.88,155.74,155.73,300.0]
[1723122265401,90.3009,155.74,155.73,300.0]
[1723122265603,83.88,155.74,155.73,300.0]
[1723122265797,113.88,155.74,155.73,300.0]
[1723122266001,75.34,155.74,155.73,300.0]
[1723122266211,45.34,155.74,155.73,300.0]
[1723122266910,75.34,155.74,155.73,300.0]
[1723122267230,120.3009,155.74,155.73,300.0]
[1723122267421,120.3009,155.74,155.73,299.64]
[1723122267737,126.98739739,155.74,155.73,299.64]
[1723122268298,126.98739739,155.74,155.73,261.5740974]
[1723122268519,126.98739739,155.74,155.73,25.5547974]
[1723122268731,36.68649739,155.74,155.73,4.4732687]
[1723122268912,68.54,155.74,155.73,4.4732687]
[1723122269116,38.54,155.74,155.73,4.4732687]
[1723122269626,44.9609,155.74,155.73,4.4732687]
[1723122269836,44.9609,155.74,155.73,4.1132687]
[1723122270350,83.54,155.74,155.73,4.1132687]
[1723122270539,89.9609,155.74,155.73,4.1132687]
[1723122271535,83.54,155.74,155.73,4.1132687]
[1723122271912,113.71,155.74,155.73,4.1132687]
[1723122272112,126.81493735,155.74,155.73,4.1132687]
[1723122273141,126.81493735,155.74,155.73,3.7532687]
[1723122273433,126.81493735,155.74,155.6,23.6025]
[1723122273434,44.9625,155.71,155.6,23.6025]
[1723122273739,38.54,155.71,155.6,23.6025]
[1723122274436,38.54,155.72,155.6,23.6025]
[1723122274615,38.54,155.7,155.61,20.0]
[1723122274811,83.54,155.69,155.61,20.0]
[1723122275042,0.34,155.68,155.61,20.0]
[1723122275434,0.34,155.68,155.6,23.6025]
[1723122275632,38.54,155.65,155.6,23.6025]
[1723122275824,83.88,155.64,155.6,23.6025]
[1723122276034,0.17,155.63,155.54,31.6067]
[1723122276231,0.34,155.63,155.54,31.6067]
[1723122276437,0.34,155.63,155.55,1.28466356]
[1723122276629,0.17,155.63,155.54,31.6067]
[1723122276821,0.34,155.63,155.54,31.6067]
[1723122278040,44.9661,155.62,155.54,31.6067]
[1723122278338,83.88,155.61,155.54,31.6067]
[1723122278543,45.34,155.61,155.54,31.6067]
[1723122278733,45.0,155.6,155.54,31.6067]
[1723122279039,6.4245,155.66,155.54,31.6067]
[1723122279040,6.4223,155.71,155.54,31.6067]
[1723122279243,6.4231,155.69,155.54,31.6067]
[1723122279445,38.54,155.7,155.54,31.6067]
[1723122279651,38.54,155.7,155.55,1.28535106]
[1723122279947,13.10493735,155.74,155.56,0.34]
[1723122280250,6.68403735,155.74,155.57,1.2848929]
[1723122280541,45.22403735,155.74,155.59,23.6269]
[1723122280752,38.54,155.76,155.6,75.65168439]
[1723122280914,38.54,155.76,155.61,0.17]
[1723122281119,38.54,155.76,155.61,1.45458314]
[1723122281323,38.54,155.76,155.6,29.3669]
[1723122281547,44.9618,155.72,155.6,29.3669]
[1723122281771,38.54,155.72,155.6,29.3669]
[1723122282045,38.54,155.74,155.61,1.28485623]
[1723122282270,6.4197,155.77,155.61,1.28485623]
[1723122282545,6.4196,155.78,155.63,23.7368]
[1723122282718,292.7818,155.86,155.63,23.7368]
[1723122282719,46.48485828,155.84,155.64,20.0]
[1723122282919,6.421,155.74,155.63,23.7368]
[1723122283149,38.54,155.72,155.63,23.7368]
[1723122283954,0.17,155.71,155.63,23.7368]
[1723122284142,45.34,155.71,155.63,23.7368]
[1723122284628,83.88,155.71,155.63,23.7368]
[1723122285048,38.54,155.68,155.63,23.7368]
[1723122285372,45.34,155.67,155.63,23.7368]
[1723122285740,6.4215,155.73,155.63,23.7368]
[1723122285955,45.34,155.72,155.63,23.7368]
[1723122286532,0.34,155.72,155.63,23.7368]
[1723122287453,0.17,155.72,155.63,23.7368]
[1723122287761,38.54,155.75,155.63,23.7368]
[1723122288135,6.4197,155.77,155.63,23.7368]
[1723122288448,6.4197,155.77,155.63,25.02130299]
[1723122288640,6.4202,155.76,155.63,23.7368]
[1723122288845,44.9602,155.76,155.63,23.7368]
[1723122289348,45.17,155.75,155.63,23.7368]
[1723122289547,0.17,155.74,155.63,23.7368]
[1723122290267,45.1312,155.74,155.63,23.7368]
[1723122290429,38.54,155.72,155.63,23.7368]
[1723122290630,0.34,155.71,155.63,23.7368]
[1723122290825,45.34,155.71,155.63,23.7368]
[1723122291739,90.3021,155.71,155.63,23.7368]
[1723122291936,83.88,155.71,155.63,23.7368]
[1723122292143,90.3022,155.71,155.63,23.7368]
[1723122292337,38.54,155.7,155.63,23.7368]
[1723122292549,38.54,155.68,155.63,23.7368]
[1723122292866,45.34,155.67,155.63,23.7368]
[1723122293764,45.17,155.67,155.63,23.7368]
[1723122293933,21.2201,155.67,155.63,23.7368]
[1723122294130,38.54,155.74,155.63,23.7368]
[1723122294331,38.54,155.71,155.63,23.7368]
[1723122294564,38.54,155.68,155.63,23.7368]
[1723122294758,0.17,155.67,155.63,23.7368]
[1723122295371,6.4255,155.63,155.6,9.3669]
[1723122295538,6.4263,155.61,155.6,9.3669]
[1723122295739,0.17,155.62,155.6,9.3669]
[1723122296248,0.34,155.63,155.6,9.3669]
[1723122296568,38.88,155.63,155.6,9.3669]
[1723122296771,0.34,155.63,155.6,9.3669]
[1723122296951,2.91323205,155.73,155.6,9.3669]
[1723122297144,6.422,155.72,155.6,9.3669]
[1723122297345,16.0524,155.74,155.6,9.3669]
[1723122297765,44.9624,155.71,155.6,9.3669]
[1723122298158,16.0524,155.74,155.6,9.3669]
[1723122298159,6.4227,155.7,155.6,9.3669]
[1723122298673,0.34,155.69,155.6,9.3669]
[1723122299251,38.88,155.7,155.6,9.3669]
[1723122299466,0.17,155.68,155.61,1.28508421]
[1723122299669,38.88,155.7,155.61,1.28508421]
[1723122299852,38.88,155.7,155.61,21.28508421]
[1723122300063,44.961,155.74,155.61,20.0]
[1723122300356,0.17,155.73,155.62,1.28465462]
[1723122300666,6.422,155.72,155.61,20.0]
[1723122300870,6.422,155.72,155.62,45.0]
[1723122301050,6.4222,155.71,155.63,20.0]
[1723122301251,38.54,155.72,155.61,20.0]
[1723122301467,38.54,155.72,155.62,45.0]
[1723122301646,6.4233,155.69,155.61,20.0]
[1723122301970,38.54,155.67,155.6,9.3669]
[1723122302175,0.34,155.66,155.6,9.3669]
[1723122302473,6.4249,155.65,155.6,9.3669]
[1723122302678,38.88,155.64,155.6,9.3669]
[1723122302966,38.88,155.66,155.6,9.3669]
[1723122303358,0.34,155.66,155.6,9.3669]
[1723122303946,38.54,155.65,155.6,9.3669]
[1723122304168,0.34,155.64,155.6,9.3669]
[1723122304385,0.34,155.66,155.6,9.3669]
[1723122304550,35.72,155.72,155.6,9.3669]
[1723122304751,2.89836134,155.75,155.61,1.28512581]
[1723122304960,44.9615,155.73,155.61,1.28512581]
[1723122305162,38.54,155.71,155.6,9.3669]
[1723122305376,44.9624,155.71,155.61,20.0]
[1723122305780,38.54,155.71,155.61,20.0]
[1723122305975,0.34,155.7,155.61,20.0]
[1723122306151,0.17,155.7,155.61,20.0]
[1723122306353,0.17,155.7,155.62,1.28478697]
[1723122307079,0.17,155.7,155.61,20.0]
[1723122307573,38.88,155.7,155.6,9.3669]
[1723122308077,6.423,155.69,155.6,9.3669]
[1723122308255,0.34,155.68,155.6,9.3669]
[1723122308566,6.7636,155.68,155.6,9.3669]
[1723122308771,0.34,155.68,155.6,9.3669]
[1723122309073,45.3036,155.68,155.6,9.3669]
[1723122309266,38.88,155.68,155.61,20.0]
[1723122309462,38.54,155.74,155.61,21.28449695]
[1723122309665,0.34,155.73,155.61,20.0]